Cogmind - Beta 16 @@@ ROGUE MODE // 2025.11.23 @ 03:39:50 Player: Red Box Result: Destroyed by MM-0LM(R) with Subdweller Laser Performance ------------- Evolutions (0) 0 Regions Visited (3) 600 Robots Destroyed (55) 275 Value Destroyed (1192) 1192 Prototype IDs (4) 80 Alien Tech Used (0) 0 Bonus (0) 0 TOTAL SCORE: 2147 Bonus ------- None Cogmind --------- Core Integrity 0/250 Matter 275/300 Energy 156/200 System Corruption 0% Temperature Cool (6) Movement Treading (260) Ox1 Location -10/Subcaves Parts ------- > --- POWER (1) -------- Subdweller Power Source > --- PROPULSION (2) --- Spiked Treads Subdweller Monowheel > --- UTILITY (2) ------ Large Storage Unit Targeting Computer > --- WEAPON (2) ------- EM Shotgun Riot Gun > --- INVENTORY (15) --- Subdweller Power Source Subdweller Power Source High-capacity Matter Pod (200) Makeshift Kinetic Plating Shield Generator Shield Generator Makeshift System Restoration Module Subdweller Laser Autogun Autogun Heavy Hammer Peak State ------------ > --- POWER ------------ Light Nuclear Core > --- PROPULSION ------- Aluminum Leg Aluminum Leg > --- UTILITY ---------- Large Storage Unit Improved Terrain Scanner > --- WEAPON ----------- EM Shotgun EM Shotgun > --- INVENTORY -------- Light Treads Light Treads Wheel Wheel Heat Sink Targeting Computer Light Armor Plating Autogun Autogun Autogun Autogun Autogun Grenade Launcher Heavy Hammer [Rating: 15] Favorites ----------- Power Light Nuclear Core Engine Subdweller Power Source Power Core Light Nuclear Core Propulsion Light Treads Treads Light Treads Leg Aluminum Leg Wheel Wheel Utility Large Storage Unit Device Improved Terrain Scanner Storage Large Storage Unit Processor Targeting Computer Protection Light Armor Plating Weapon Autogun Energy Gun EM Shotgun Ballistic Gun Autogun Launcher Rocket Launcher Impact Weapon Heavy Hammer Special Melee Weapon Datajack Build | -11 -10 -10 -10 ------- Run | Yrd Mat Min Sub Slots Evolved . | . . . . Power . | . . . . Propulsion . | . . . . Utility . | . . . . Weapon . | . . . . Parts Attached 38 | 8 12 6 12 Power 5 | 1 1 1 2 Engine 4 | 1 . 1 2 Core 1 | . 1 . . Reactor . | . . . . Propulsion 9 | 2 2 2 3 Treads 3 | . 1 1 1 Leg 2 | 2 . . . Wheel 4 | . 1 1 2 Hover . | . . . . Flight . | . . . . Utility 7 | 2 3 2 . Device 1 | 1 . . . Storage 3 | 1 2 . . Processor 2 | . 1 1 . Hackware . | . . . . Protection 1 | . . 1 . Artifact . | . . . . Weapon 17 | 3 6 1 7 Energy Gun 6 | 1 2 . 3 Energy Cannon . | . . . . Ballistic Gun 7 | 2 2 1 2 Ballistic Cannon . | . . . . Launcher 2 | . 1 . 1 Special Weapon . | . . . . Impact Weapon 1 | . 1 . . Slashing Weapon . | . . . . Piercing Weapon . | . . . . Special Melee Weapon 1 | . . . 1 Unidentified Prototypes . | . . . . Parts Lost 13 | . . 2 11 Power 1 | . . . 1 Propulsion 5 | . . 1 4 Utility 1 | . . 1 . Weapon 6 | . . . 6 Highest Loss Streak 5 | . . 2 5 To Critical Strikes . | . . . . Average Backups 12 | 4 10 14 14 Power . | . . . 1 Propulsion 2 | 3 3 1 1 Utility 2 | . 2 3 3 Weapon 6 | 1 4 8 6 Tool/Special . | . . . . Unused Backups 14 | . 3 1 10 Power 2 | . . . 2 Propulsion 2 | . . 1 1 Utility 6 | . 1 . 5 Weapon 4 | . 2 . 2 Tool/Special . | . . . . Average Slot Usage (%) 99 | . 99 99 99 Engine 7 | . 2 9 13 Core 6 | . 11 4 . Treads 10 | . 3 14 15 Leg 8 | . 20 . . Wheel 9 | . 3 14 12 Device 5 | . 14 . . Storage 14 | . 14 14 14 Processor 6 | . . 7 14 Protection 1 | . . 6 . Energy Gun 10 | . 22 . 3 Ballistic Gun 13 | . 4 27 15 Launcher 1 | . . . 5 Peak Build Rating 15 | 9 15 13 15 Average Rating 12 | 6 13 11 12 On Entrance 8 | . 9 13 11 Avg Prop Armor Cover (%) 10 | . 11 10 11 Naked Turns . | . . . . Heaviest Build 34 | 12 32 34 32 Greatest Support 40 | 20 20 20 40 Greatest Overweight (x) 3 | . 3 3 3 Average Overweight (x) 2 | . 1 2 2 Largest Inventory Capacity 15 | 8 15 15 15 Average Capacity 13 | 7 12 15 15 Most Carried 15 | 6 15 15 15 Average Carried 12 | 4 10 14 14 Final Capacity 15 | 8 15 15 15 Final Carried 15 | 6 14 15 11 Class Distribution -------------------- 100% | Mutant Dominant Class ---------------- Mutant | -10/Materials Mutant | -10/Mines Mutant | -10/Subcaves Resources | -11 -10 -10 -10 ----------- Run | Yrd Mat Min Sub Matter Collected 1745 | 324 286 636 499 Remotely . | . . . . Salvage Created 1449 | 130 590 367 362 Parts 105 | 11 39 35 20 Haulers Intercepted . | . . . . Recyclers Shooed 1 | . 1 . . Parts Field Recycled . | . . . . Retrieved Matter . | . . . . Parts Self-Destructed 2 | . . . 2 Prevented . | . . . . Parts Restored . | . . . . Kills | -11 -10 -10 -10 ------- Run | Yrd Mat Min Sub Combat Hostiles Destroyed 48 | . 16 23 9 Guns 33 | . 8 17 8 AOE 15 | . 8 6 1 Classes Destroyed 10 | 2 3 3 2 Worker 1 | . . 1 . Tunneler 3 | 3 . . . Recycler 3 | 1 2 . . Watcher 3 | . 3 . . Swarmer 24 | . 9 15 . Grunt 11 | . 7 4 . Sentry 1 | . . . 1 Demolisher 1 | . . 1 . Subdweller 8 | . . . 8 Assembled 3 | . . 3 . Best Kill Streak 4 | 2 4 4 3 Combat Bots Only 3 | . 3 3 3 Max Kills in Single Turn 4 | 1 4 2 1 Gunslinging 1 | . . 1 . Exploded 3 | . 3 2 1 Melee . | . . . . Uniques/NPCs Destroyed . | . . . . Combat | -11 -10 -10 -10 -------- Run | Yrd Mat Min Sub Hostile Shots Fired 181 | . 40 85 56 Missed 64 | . 17 32 15 Hits 117 | . 23 53 41 Projectile 117 | . 23 53 41 AOE 3 | . . . 3 Critical Strikes 3 | . . 2 1 Damage Taken 1879 | . 283 531 1065 Core 264 | . 34 97 133 Absorbed by Shields . | . . . . Regen/Repaired (Parts) 13 | . 13 . . Core Remaining (%) 100 | 100 . . . Volleys Fired 124 | 11 34 45 34 Largest 2 | 2 2 2 2 Hottest 95 | 40 90 68 95 Shots Fired 244 | 22 68 89 65 Gun 220 | 22 64 81 53 Cannon . | . . . . Launcher 24 | . 4 8 12 Special . | . . . . Kinetic 150 | 22 25 78 25 Thermal . | . . . . Explosive 24 | . 4 8 12 Electromagnetic 70 | . 39 3 28 Robot Hit Streak 27 | 6 15 7 27 Robot Miss Streak 8 | 2 3 8 2 Penetration Max . | . . . . Secondary Targets 4 | . 1 2 1 Max Gunslinging Chain 1 | . 1 1 1 Shots Hit Robots 155 | 13 49 41 52 Core Hits 91 | 5 33 30 23 Critical Kills . | . . . . Critical Parts Destroyed 1 | . . 1 . Critical Strikes 1 | . . 1 . Destroy 1 | . . 1 . Melee Attacks 13 | . 2 2 9 Impact 12 | . 2 2 8 Slashing . | . . . . Piercing . | . . . . Sneak Attacks 1 | . . . 1 Combat Hostiles . | . . . . Follow-up Attacks . | . . . . Damage Inflicted 3756 | 140 1244 1277 1095 Guns 2023 | 140 669 673 541 Cannons . | . . . . Explosions 1733 | . 575 604 554 Melee . | . . . . Ramming . | . . . . Kinetic 1246 | 140 185 648 273 Thermal 197 | . 137 60 . Explosive 1536 | . 438 544 554 Electromagnetic 777 | . 484 25 268 Impact . | . . . . Slashing . | . . . . Piercing . | . . . . Highest Corruption . | . . . . Average Corruption . | . . . . Corruption Purged . | . . . . Corruption Blocked . | . . . . Overload Shots . | . . . . Overflow Damage 66 | . . 31 35 Projectiles . | . . . . Explosions 66 | . . 31 35 Melee . | . . . . Knockbacks . | . . . . Impact . | . . . . Kinetic . | . . . . Secondary . | . . . . Self-Inflicted Damage 98 | . 23 17 58 Shots 5 | . 2 1 2 Rammed . | . . . . Targets Rammed . | . . . . Kicked . | . . . . Crushed . | . . . . Highest Temperature 273 | . 273 68 . Average Temperature 43 | . 67 18 . Received Heat Transfer 404 | . 111 113 180 Siege Activations . | . . . . Martial Activations . | . . . . Shielding Activations . | . . . . Robots Disrupted . | . . . . Combat Hostiles . | . . . . Robots Corrupted . | . . . . Combat Hostiles . | . . . . Parts Fried 3 | . 2 . 1 Impact Corruptions . | . . . . Robots Melted . | . . . . Combat Hostiles . | . . . . Parts Melted . | . . . . Heat Transferred 250 | . 150 100 . Parts Sabotaged . | . . . . Parts Stolen . | . . . . Parts Stripped . | . . . . Power Chain Reactions 2 | . 2 . . Alert | -11 -10 -10 -10 ------- Run | Yrd Mat Min Sub Maximum Alert Level . | . . . . Low Security (%) 100 | 100 100 100 . Level 1 . | . . . . Level 2 . | . . . . Level 3 . | . . . . Level 4 . | . . . . Level 5 . | . . . . High Security . | . . . . Max Security . | . . . . Peak Influence 181 | 5 151 181 . Initial 17 | . . 17 . Average 61 | 1 37 102 . Influence Increases 1136 | 20 538 558 20 Destroy 0b10 Robot/C 740 | . 320 400 20 Destroy 0b10 Robot/NC 50 | 20 25 5 . Destroy Leader 126 | . 56 70 . Successful Hack 47 | . 47 . . Select Force Hacks 60 | . 60 . . Disable Machine 30 | . . 30 . Destroy Structure 83 | . 30 53 . Influence Decreases 1136 | 20 492 581 43 Entered New Map 42 | . . 29 13 Time Decay 1054 | 20 492 522 20 Lost Part 30 | . . 20 10 Lost Ally 10 | . . 10 . Squads Dispatched 3 | . 3 . . Investigation 3 | . 3 . . Extermination . | . . . . Reinforcement . | . . . . Assault . | . . . . Garrison . | . . . . Intercept . | . . . . Searches Triggered . | . . . . Construction Impeded . | . . . . Haulers Reinforced . | . . . . Active Scanning Responses . | . . . . Cargo Convoy Interrupts . | . . . . Stealth | -11 -10 -10 -10 --------- Run | Yrd Mat Min Sub Distress Signals 2 | . 2 . . Communications Jammed . | . . . . Distress Signals . | . . . . Times Spotted 60 | . 21 28 11 Peak Tracking Total 11 | . 4 11 3 Tactical Retreats 1 | . . 1 . Traps | -11 -10 -10 -10 ------- Run | Yrd Mat Min Sub Traps Triggered 1 | . . . 1 Indirectly . | . . . . Trap Hack Attempts 65 | . . . 65 Triggered . | . . . . Disarmed 1 | . . . 1 Reprogrammed 8 | . . . 8 Reused . | . . . . Traps Extracted . | . . . . Installed 1 | . . . 1 Triggered . | . . . . Most Traps Carried 1 | . . . 1 Machines | -11 -10 -10 -10 ---------- Run | Yrd Mat Min Sub Machines Disabled 2 | . . 2 . Max in Single Turn 1 | . . 1 . Machines Repaired . | . . . . Machines Dismantled . | . . . . Machines Sabotaged . | . . . . Overloaded Fab Kills . | . . . . Hacking | -11 -10 -10 -10 --------- Run | Yrd Mat Min Sub Machines Accessed 11 | . 11 . . Terminals 8 | . 8 . . Fabricators . | . . . . Repair Stations 1 | . 1 . . Recycling Units 2 | . 2 . . Scanalyzers . | . . . . Garrison Access . | . . . . Total Hacks 47 | . 47 . . Successful 34 | . 34 . . Failed 12 | . 12 . . Catastrophic . | . . . . Database Lockouts 1 | . 1 . . Manual 30 | . 30 . . Terminals 34 | . 34 . . Fabricators . | . . . . Repair Stations 3 | . 3 . . Recycling Units 10 | . 10 . . Scanalyzers . | . . . . Garrison Access . | . . . . Terminal Hacks 8 | . 8 . . Robot Analysis 2 | . 2 . . Prototype ID Bank 2 | . 2 . . Terminal Index 1 | . 1 . . Locate Traps 2 | . 2 . . Hauler Manifests 1 | . 1 . . Fabricator Hacks . | . . . . Repair Station Hacks 2 | . 2 . . Scan Component 1 | . 1 . . Repair 1 | . 1 . . Recycling Unit Hacks 2 | . 2 . . Retrieve Components 2 | . 2 . . Scanalyzer . | . . . . Garrison Access Hacks . | . . . . Unauthorized Hacks 22 | . 22 . . Terminals 16 | . 16 . . Track 2 | . 2 . . Assimilate 2 | . 2 . . Botnet 6 | . 6 . . Operators 1 | . 1 . . Skim 5 | . 5 . . Fabricators . | . . . . Repair Stations 1 | . 1 . . Patch 1 | . 1 . . Recycling Units 5 | . 5 . . Reject 1 | . 1 . . Mask 2 | . 2 . . Tunnel 2 | . 2 . . Scanalyzers . | . . . . Garrison Access . | . . . . Data Cores Recovered . | . . . . Used . | . . . . Hacking Detections 11 | . 11 . . Full Trace Events 1 | . 1 . . Feedback Events . | . . . . Feedback Blocked . | . . . . Robot Schematics Acquired . | . . . . Robots Built . | . . . . Authchips . | . . . . Time . | . . . . Total Robot Build Rating . | . . . . Part Schematics Acquired . | . . . . Parts Built . | . . . . Authchips . | . . . . Time . | . . . . Total Part Build Rating . | . . . . Part Studies Acquired . | . . . . Parts Repaired 1 | . 1 . . Time 32 | . 32 . . Parts Recycled . | . . . . Recycled Matter . | . . . . Retrieved Matter . | . . . . Retrieved Components 6 | . 6 . . Parts Scanalyzed . | . . . . Part Schematics Acquired . | . . . . Parts Damaged . | . . . . Bothacking | -11 -10 -10 -10 ------------ Run | Yrd Mat Min Sub Used RIF Installer . | . . . . Robots Hacked 1 | . . . 1 Non-combat 1 | . . . 1 Combat . | . . . . Robot Hacks Applied 1 | . . . 1 parse_system 1 | . . . 1 Relay Couplers Released . | . . . . Fabnet Peak Effective % . | . . . . Robots Rewired . | . . . . Allies Hacked . | . . . . Hacks Repelled . | . . . . Allies | -11 -10 -10 -10 -------- Run | Yrd Mat Min Sub Total Allies 1 | . 1 . . Largest Group 1 | . 1 1 . Highest-Rated Group 10 | . 10 10 . Highest-Rated Ally 10 | . 10 10 . Total Orders 7 | . 6 1 . STAY 4 | . 3 1 . FOLLOW 3 | . 3 . . Ally Attacks . | . . . . Total Damage . | . . . . Kills . | . . . . Allies Corrupted . | . . . . Allies Melted . | . . . . Intel | -11 -10 -10 -10 ------- Run | Yrd Mat Min Sub Active Infowar (turns) 2241 | 45 2196 . . Terrain 2241 | 45 2196 . . Robot Analysis Total 2 | . 2 . . Derelict Logs Recovered 1 | . . 1 . Drone Launches . | . . . . Drone Recoveries . | . . . . Exploration | -11 -10 -10 -10 ------------- Run | Yrd Mat Min Sub Turns Passed 5438 | 126 2200 1456 1656 Spaces Moved 3044 | 74 1170 926 874 Core 15 | 15 . . . Treads 138 | . . . 138 Legs 889 | 59 830 . . Wheels 2002 | . 340 926 736 Hover . | . . . . Flight . | . . . . Fastest Speed 50 | 50 120 95 110 Average Speed 140 | 105 158 124 136 Slowest Speed 240 | 120 190 125 240 Overloaded Moves . | . . . . Propulsion Burnouts . | . . . . Robots Hopped . | . . . . Potential Cave-ins . | . . . . Cave-ins Triggered . | . . . . Exploration Rate (%) 65 | 5 99 99 58 Regions Visited 3 Branch Regions 2 Pre-discovered Areas 3 | . 3 . . Known Exits Taken 1 | . 1 . . Unknown Exits Taken 2 | 1 . 1 . Scrap Searched 3 | . . 3 . Spaces Dug 6 | . 2 2 2 Terrain Destroyed 190 | . 27 64 99 Melee 6 | . 2 2 2 Projectile . | . . . . AOE 184 | . 25 62 97 Terrain Rammed . | . . . . Walls Destroyed . | . . . . Machines Disabled . | . . . . Actions | -11 -10 -10 -10 --------- Run | Yrd Mat Min Sub Total 3935 | 98 1442 1144 1251 Wait 542 | . 183 139 220 Move 3041 | 73 1169 925 874 Hop . | . . . . Pick Up 42 | 6 18 8 10 Fast Attach 13 | 7 4 1 1 Attach 18 | . 4 4 10 Detach 3 | . 2 1 . Swap 50 | 1 13 14 22 Drop 23 | . 13 5 5 Fire 124 | 11 34 45 34 Melee 13 | . 2 2 9 Ram . | . . . . Kick . | . . . . Crush . | . . . . Escape Stasis . | . . . . Rewire . | . . . . Trap 66 | . . . 66 Miscellaneous . | . . . . Route ------- -11/Scrapyard -10/Materials (discovered 5 exits: *Mat x3 / *Min / [*Sub]) -10/Mines (discovered 4 exits: *Mat x2 / *Exi / [*Sub]) -10/Subcaves (discovered 1 exit: [*Mat]) History --------- Turn | Location | Event 6 | -11/Scrapyard | Discovered new exit (range 16) 127 | -11/Scrapyard | Entered Materials 306 | -10/Materials | Build established: Mutant 356 | -10/Materials | Discovered new exit (range 5) 649 | -10/Materials | Discovered new exit (range 8) 674 | -10/Materials | Discovered new exit (range 16) 980 | -10/Materials | Discovered new exit (range 8) 1147 | -10/Materials | Central database locked down 1228 | -10/Materials | Identified exit to Mines 1299 | -10/Materials | Learned 4 Recycling zone layouts 1362 | -10/Materials | Learned Storage stockpile data 1415 | -10/Materials | Learned location of 3 exits from Materials 1530 | -10/Materials | Identified exit to Materials 1581 | -10/Materials | Learned 2 Mines zone layouts 1646 | -10/Materials | Repaired EM Shotgun 2327 | -10/Materials | Entered Mines 2327 | -10/Mines | Accompanied by 1 ally 2328 | -10/Mines | Identified exit to Exiles 2612 | -10/Mines | Learned Materials terminal intel 2726 | -10/Mines | Discovered exit to Materials (range 9) 3017 | -10/Mines | Assembled infested the area 3022 | -10/Mines | Assisted by a Guerilla fighting off Assembled 3180 | -10/Mines | Discovered exit to Materials (range 10) 3384 | -10/Mines | Core integrity fell below 50% 3438 | -10/Mines | Discovered new exit (range 5) 3582 | -10/Mines | Received a Rocket Launcher from a helpful Derelict 3756 | -10/Mines | Deemed a non-threat by the Exiles lab entrance 3783 | -10/Mines | Entered Subcaves 3784 | -10/Subcaves | Approached by a straggling Scientist 3805 | -10/Subcaves | Ambushed by Subdweller buried in earth 3837 | -10/Subcaves | Lost 3 parts (1p1n1w) 4651 | -10/Subcaves | Shifting Twisted Machinery released Mak. Kinetic Plating 5143 | -10/Subcaves | A swath of the cavern ceiling suddenly collapsed 5266 | -10/Subcaves | Lost 5 parts (2n3w) 5279 | -10/Subcaves | Discovered new exit (range 9) 5289 | -10/Subcaves | Shifting Twisted Machinery released Spk. Treads 5296 | -10/Subcaves | Shifting Twisted Machinery released Riot Gun 5422 | -10/Subcaves | Core integrity fell below 20% 5439 | -10/Subcaves | Destroyed by MM-0LM(R) with Subdweller Laser Last Messages --------------- 05275_ Acquired 7 matter. 05276_ The unstable cave ceiling collapses. 05277_ Acquired 10 matter. 05279_ EXIT=FOUND Spk. Treads falls loose from the Twisted Machinery. 05291_ Acquired 13 matter. Riot Gun falls loose from the Twisted Machinery. 05303_ Acquired Spk. Treads. 4D-GHL(c): "I think it's somewhere northeast of here" 05319_ Acquired Riot Gun. 05329_ Acquired 9 matter. 05353_ Acquired 1 matter. 4D-GHL(c): "I think it's somewhere northeast of here" 4D-GHL(c): "I think it's somewhere north of here" 05420_ Rocket Launcher destroyed. 05423_ Lgt. Treads destroyed. 05429_ EM Shotgun destroyed. 05432_ 65-VNC(R) destroyed. Map ----- +----------------------------------------------------+ | ?????????????????????????????????????????????????? | | ?????????????????????????????????????????????????? | | ?????????????????????????????????????????????????? | | ?????????????????????????????????????????????????? | | ?????????????????????????????????????????????????? | | ?????????????????????????????????????????????????? | | ?????????????????????????????????????????????????? | | ?????????????????????????????????????????????????? | | ?????????????????????????????????????????????????? | | ?????????????????????????????????????????????????? | | ?????????????????????????????????????????????????? | | ??????????????# ##?????????????????????????????? | | ????????????? ???????????????????????????? | | #????? ??????? ??????????????????????????? | | ?### ??????? ?????????????????????????? | | # # ?????? ?????????????????????????? | | # ??????? ??????????????????????????? | | # ?????? #??????????????????????????? | | ?????? #??????????????????????????? | | #???????? ???????##??????????????????? | | # #????????# #???????? ##?????????????????? | | #???????## #????????# #?????????????????? | | #?????## ####????? ##????????????????? | | # #??????????# ##?###& "#????????????????? | | ?????#######?# ### &% ""###"?????????????? | | ?????# %## ### ###@ R"" "?????????????? | | #?##?# #??## """ ????????????? | | ###"##" ##??# "######?????????????? | | """" ## ### # #### c ##??????????????????? | | """##"" ####?### ## ##???????????????????? | | "#"#""" ##?## ## ##????????????????????? | | " "" #?# ##?????????????????????? | | "" ###?# ###??????????????????????? | | ####" #???### ###????????????????????????? | | "### #?????#### ##??????????????????????????? | | #????????####???????????????????????????? | | ### " ##???????????????????????????????????????? | | #?#######????????????????????????????????????????? | | ?????????????????????????????????????????????????? | | ?????????????????????????????????????????????????? | | ?????????????????????????????????????????????????? | | ?????????????????????????????????????????????????? | | ?????????????????????????????????????????????????? | | ?????????????????????????????????????????????????? | | ?????????????????????????????????????????????????? | | ?????????????????????????????????????????????????? | | ?????????????????????????????????????????????????? | | ?????????????????????????????????????????????????? | | ?????????????????????????????????????????????????? | | ?????????????????????????????????????????????????? | +----------------------------------------------------+ Best States ------------- Heat Dissipation 25 Energy Generation 15 Energy Capacity 250 Matter Stores 300 Matter Capacity 300 Sight Range 16 Terrain Scan Range 16 Terrain Scan Density 10 Armor Coverage 150 Evasion (%) 55 Targeting Accuracy 5 Recoil Reduction 2 Item Schematics ----------------- None Robot Schematics ------------------ None Fabricated ------------ Nothing Repaired ---------- EM Shotgun | 78% | -10/Materials Studied --------- None Alien Tech Used ----------------- None Achievements -------------- None Challenges ------------ None Game ------ Seed BoltDisassembledBlasthammer Manual? 0 Play Time 00:34:54 Cumulative 719.1 hours Start 2025.11.23 @ 03:05:14 End 2025.11.23 @ 03:39:50 Sessions 1 Manual Loads 0 Difficulty Rogue Special Mode None Game No. 500 Rogue 500 Adventurer 0 Explorer 0 Win Type - Total 1 Types 1/0/0/0/0/0/0/0/0/0 Lore% 68 Gallery% 67 Achievement% 46 Wizard Run 0 Options --------- Layout 1 ASCII 0 Keyboard 0 Movement Mouse Keybinds 0 Fullscreen 1 Font 20/SmallcapsGlow Map View 54x42 Zoom Use 0% Tactical HUD 1 Map Filters NONE Filters NONE Steam 1 RUN: 22e68dd1-da94-4cf1-acf8-03224f587b75